bitfinex/quotes_ETHUSD_20250703
["timestamp","ask_amount","ask_price","bid_price","bid_amount"]
[1751560096334,0.92861562,2574.7,2574.6,4.0776985]
[1751560097136,0.92861562,2574.7,2574.6,0.1936]
[1751560097635,0.92861562,2574.7,2574.6,4.0776985]
[1751560098005,0.92861562,2574.7,2574.6,0.1936]
[1751560099151,0.92861562,2574.7,2574.2,0.802]
[1751560099152,2.20094502,2574.7,2574.2,3.8846284]
[1751560099442,0.94748226,2574.6,2574.5,0.1936]
[1751560100010,0.90861562,2574.6,2574.5,4.07784936]
[1751560100542,0.90861562,2574.6,2574.5,0.23244249]
[1751560100748,0.90861562,2574.6,2574.5,4.07784936]
[1751560102315,0.90861562,2574.6,2574.5,4.95734267]
[1751560102510,0.90861562,2574.6,2574.5,4.07784936]
[1751560104649,0.90861562,2574.6,2574.5,4.11669185]
[1751560104948,0.90861562,2574.6,2574.5,4.07784936]
[1751560105540,0.90861562,2574.6,2574.5,4.08784936]
[1751560106365,0.90861562,2574.6,2574.5,4.12669185]
[1751560106518,0.90861562,2574.6,2574.5,4.92778941]
[1751560107052,0.90861562,2574.6,2574.5,4.88894692]
[1751560107648,0.02,2574.7,2574.6,3.8840985]
[1751560107835,0.02,2574.7,2574.6,4.72033948]
[1751560108156,0.7966,2575.8,2574.7,0.55]
[1751560108329,0.7966,2575.8,2575.7,3.88243972]
[1751560108531,0.7966,2575.8,2575.7,0.1936]
[1751560108732,10.83546664,2575.8,2575.7,0.1936]
[1751560108927,0.7966,2575.8,2575.7,0.1936]
[1751560109131,0.83546664,2575.8,2575.7,0.1936]
[1751560109542,0.7966,2575.8,2575.7,0.1936]
[1751560110333,10.83546664,2575.8,2575.7,0.1936]
[1751560110635,10.7966,2575.8,2575.7,0.1936]
[1751560111037,0.7966,2575.8,2575.7,0.1936]
[1751560112278,0.02,2577.0,2576.9,3.88063176]
[1751560112454,0.02,2577.0,2576.9,5.84064277]
[1751560112938,0.7597,2577.7,2577.6,3.8795779]
[1751560114569,10.0,2577.6,2576.4,0.7657]
[1751560114775,0.03886664,2577.5,2576.5,0.7604012]
[1751560114937,11.82629838,2577.5,2577.0,3.88043453]
[1751560115138,15.66718328,2577.5,2576.9,3.88056031]
[1751560115772,1.78743174,2577.5,2577.0,3.8804485]
[1751560116066,1.82629838,2577.5,2577.1,0.36051747]
[1751560116274,5.70603129,2577.5,2576.9,3.88057605]
[1751560116473,1.57060313,2577.4,2577.0,0.36023528]
[1751560116681,0.03886664,2577.3,2576.9,3.88057605]
[1751560116972,0.03886664,2577.3,2577.0,4.24068137]
[1751560117175,0.03886664,2577.3,2576.9,3.88055217]
[1751560118288,11.57060313,2577.4,2577.1,3.88031262]
[1751560118451,0.03886664,2577.3,2577.0,3.88041732]
[1751560119350,1.5877887,2577.3,2577.1,3.88029579]
[1751560119585,0.03886664,2577.3,2577.2,3.88018004]
[1751560119761,4.63914823,2577.7,2577.1,3.88028121]
[1751560119762,10.03886664,2577.5,2577.1,3.88028121]
[1751560119951,0.03886664,2577.4,2577.1,3.88028121]
[1751560120379,0.03886664,2577.4,2577.0,3.88040928]
[1751560120585,0.03886664,2577.4,2577.1,3.88029681]
[1751560120971,0.03886664,2577.5,2577.1,3.88029681]
[1751560121174,4.63919654,2577.7,2577.1,0.0388033]
[1751560121175,0.7597,2577.7,2577.1,0.0388033]
[1751560121388,10.7597,2577.7,2577.3,3.88001966]
[1751560121692,2.22360764,2577.7,2577.1,3.8803306]
[1751560121878,0.8095,2578.3,2577.7,3.87934593]
[1751560122073,0.03886664,2578.2,2577.8,3.87923935]
[1751560122281,1.0031,2578.3,2577.8,0.1936]
[1751560122451,0.03886664,2578.2,2577.9,3.87899229]
[1751560122651,0.03886664,2578.2,2578.1,0.1936]
[1751560122886,10.03886664,2578.2,2578.1,0.1936]
[1751560123197,11.86054244,2578.2,2578.1,0.1936]
[1751560123796,15.73921748,2578.2,2578.1,0.1936]
[1751560124982,13.87890004,2578.1,2577.4,3.87984043]
[1751560125202,13.91784259,2578.0,2577.9,0.1936]
[1751560125357,13.87897595,2578.0,2577.9,0.1936]
[1751560125556,10.0,2577.9,2577.5,3.87963241]
[1751560125757,0.03886664,2577.8,2577.7,0.1936]
[1751560125956,4.6887769,2577.8,2577.7,0.1936]
[1751560126153,4.6887769,2577.8,2577.6,0.1936]
[1751560126354,0.03886664,2577.7,2577.6,0.1936]
[1751560126871,0.03886664,2577.8,2577.6,0.1936]
[1751560127067,3.91818619,2577.8,2577.6,0.1936]
[1751560127267,3.87942739,2577.7,2577.6,0.1936]
[1751560127482,3.91817058,2577.8,2577.6,0.1936]
[1751560127483,3.87936,2577.8,2577.6,0.1936]
[1751560127788,3.91822664,2577.8,2577.6,0.1936]
[1751560128358,3.87942739,2577.7,2577.6,0.1936]
[1751560128559,13.87942739,2577.7,2577.6,0.1936]
[1751560129579,3.87963507,2577.6,2577.1,3.88032196]
[1751560129782,0.03886664,2577.5,2577.4,0.1936]
[1751560129997,0.03886664,2577.5,2577.0,0.01]
[1751560129998,3.87994518,2577.4,2577.0,0.01]
[1751560130162,0.03886664,2577.3,2577.2,0.1936]
[1751560130362,3.91889612,2577.3,2577.2,0.1936]
[1751560130593,0.81872909,2577.3,2577.2,0.1936]
[1751560130893,3.91889612,2577.3,2577.2,0.1936]
[1751560131200,3.87984491,2577.5,2577.2,0.1936]
[1751560131495,3.88002948,2577.3,2577.2,0.1936]
[1751560131691,3.91882786,2577.4,2577.2,0.1936]
[1751560132609,0.03886664,2577.4,2577.2,0.1936]
[1751560133601,3.91882582,2577.4,2577.2,0.1936]
[1751560134188,3.88002948,2577.3,2577.2,0.1936]
[1751560134387,3.87995635,2577.4,2577.2,0.1936]
[1751560134616,3.91882299,2577.4,2577.2,0.1936]
[1751560135380,3.88002948,2577.3,2577.2,0.1936]
[1751560136511,3.91880108,2577.4,2577.2,0.1936]
[1751560136815,0.03886664,2577.4,2577.2,0.1936]
[1751560138403,0.03886664,2577.6,2577.3,4.29046212]
[1751560138590,0.03886664,2577.6,2577.4,0.4105008]
[1751560138795,0.03886664,2577.6,2577.4,0.1936]
[1751560139197,0.03886664,2577.6,2577.5,0.21707597]
[1751560139398,0.03886664,2577.6,2577.5,0.21707572]
[1751560140821,13.91844454,2577.6,2577.5,0.21707572]
[1751560141026,15.73881609,2577.6,2577.5,0.21707572]
[1751560141424,15.93241609,2577.6,2577.5,0.21707572]
[1751560145753,16.80608086,2577.6,2577.5,0.21707572]
[1751560148528,3.88009739,2577.3,2577.0,0.2036]
[1751560148727,0.03886664,2577.2,2577.0,0.2036]
[1751560149370,3.91913688,2577.2,2577.0,0.2036]
[1751560149557,0.03886664,2577.2,2577.0,0.2036]
[1751560150465,3.9190631,2577.2,2577.0,0.2036]
[1751560150960,3.9190631,2577.2,2577.0,0.16911161]
[1751560151771,3.8803306,2577.1,2577.0,0.16911161]
[1751560151929,4.7070306,2577.1,2577.0,0.16911161]
[1751560152132,4.7070306,2577.1,2576.1,3.88172965]
[1751560152133,3.88054169,2577.0,2576.4,0.7728]
[1751560152446,0.03886664,2577.1,2576.9,0.1936]
[1751560152962,0.03886664,2577.1,2577.0,0.01]
[1751560153158,0.03886664,2577.2,2577.0,0.01]
[1751560153363,3.91910602,2577.2,2577.0,0.01]
[1751560154661,0.03886664,2577.2,2577.0,0.01]
[1751560155683,3.91905721,2577.2,2577.0,0.01]
[1751560156035,0.03886664,2577.2,2577.0,0.01]
[1751560156463,10.0,2577.3,2577.0,3.89045549]
[1751560156680,10.0,2577.3,2577.1,0.1936]
[1751560157445,0.03886664,2577.2,2577.1,0.1936]
[1751560158978,10.0,2577.3,2577.1,0.1936]
[1751560161303,7.8,2577.5,2577.2,3.88004991]
[1751560161471,17.8,2577.5,2577.2,3.88004991]
[1751560161665,17.8,2577.5,2577.1,4.07386232]
[1751560161899,0.03886664,2577.4,2577.1,4.07386232]
[1751560162796,0.03886664,2577.4,2577.2,3.88017629]
[1751560162991,10.0,2577.5,2577.3,0.1936]
[1751560163506,10.0,2577.5,2577.3,4.07361003]
[1751560164474,0.02,2577.6,2577.3,0.1936]
[1751560164675,0.02,2577.6,2577.3,4.07351462]
[1751560165106,0.02,2577.6,2577.4,3.87986085]
[1751560165403,0.02,2577.6,2577.4,4.66202557]
[1751560166401,0.02,2577.6,2577.5,3.87972841]
[1751560166592,0.02,2577.6,2577.5,0.1936]
[1751560166973,0.02,2577.6,2577.5,4.07332841]
[1751560168504,3.8995779,2577.6,2577.5,0.1936]
[1751560168705,5.09153719,2577.6,2577.1,0.8279]
[1751560169005,0.03886664,2577.5,2577.1,0.8279]
[1751560169301,3.88012121,2577.3,2577.0,0.01]
[1751560169601,3.9190563,2577.2,2577.0,0.01]
[1751560169903,0.63055821,2577.6,2577.0,0.01]
[1751560170210,3.88026324,2577.2,2577.0,0.01]
[1751560170415,3.88003885,2577.3,2577.0,0.01]
[1751560170622,3.88024317,2577.2,2577.0,0.01]
[1751560171520,3.8803306,2577.1,2577.0,0.01]
[1751560172413,3.88032128,2577.2,2577.0,0.01]
[1751560173322,3.8802469,2577.2,2577.0,0.01]
[1751560173502,3.8803306,2577.1,2577.0,0.01]
[1751560175833,15.47428886,2577.1,2577.0,0.01]
[1751560184203,16.37272421,2577.1,2577.0,0.01]
[1751560185822,24.82085019,2577.1,2577.0,0.01]
[1751560186023,24.82085019,2577.1,2577.0,1e-08]
[1751560186223,54.82085019,2577.1,2577.0,1e-08]
[1751560187030,55.37085019,2577.1,2577.0,1e-08]
[1751560187741,24.82085019,2577.1,2577.0,1e-08]
[1751560188308,28.82085019,2577.1,2577.0,1e-08]
[1751560189321,24.82085019,2577.1,2577.0,1e-08]
[1751560189723,15.47428886,2577.1,2577.0,1e-08]
[1751560189924,14.6982306,2577.1,2577.0,1e-08]
[1751560192313,23.14635658,2577.1,2577.0,1e-08]
[1751560194360,14.8918306,2577.1,2577.0,1e-08]
[1751560197159,23.33995658,2577.1,2577.0,1e-08]
[1751560198233,24.23911749,2577.1,2577.0,1e-08]
[1751560199252,27.05105444,2577.1,2577.0,1e-08]
[1751560201641,27.05105444,2577.1,2575.9,0.2036]
[1751560201642,0.7798,2576.5,2575.9,0.2036]
[1751560201854,3.88198757,2576.0,2575.9,0.2036]
[1751560205877,4.07504273,2576.4,2575.9,0.2036]
[1751560206060,0.1936,2576.4,2576.0,0.1936]
[1751560206260,3.88196039,2576.1,2575.9,0.01]
[1751560206575,22.33011355,2576.0,2575.9,0.01]
[1751560206873,14.07558757,2576.0,2575.9,0.01]
[1751560213381,23.22178757,2576.0,2575.4,0.1936]
[1751560213604,23.22178757,2576.0,2574.6,0.29939225]
[1751560213605,3.88335675,2575.1,2575.0,0.1936]
[1751560213804,3.88329739,2575.2,2575.0,0.1936]
[1751560214009,10.1936,2575.4,2575.0,0.1936]
[1751560214186,10.0,2575.3,2575.0,0.1936]
[1751560214613,10.1936,2575.4,2575.0,3.8833447]
[1751560214818,4.70581984,2575.8,2575.0,0.85646724]
[1751560215110,10.0,2575.7,2575.3,4.07656839]
[1751560215505,13.88244017,2575.7,2575.3,0.1936]
[1751560215711,3.88279441,2575.5,2575.3,0.1936]
[1751560215912,10.0,2575.5,2575.3,0.1936]
[1751560216584,10.0,2575.6,2575.3,0.1936]
[1751560216785,10.0,2575.7,2575.3,4.07661898]
[1751560217085,4.0759923,2575.8,2575.5,4.07634053]
[1751560217086,10.0,2575.8,2575.5,4.07634053]
[1751560217296,10.0,2575.8,2575.5,0.1936]
[1751560217613,13.88220683,2575.9,2575.5,0.1936]
[1751560218591,13.88220683,2575.9,2575.5,4.07631245]
[1751560219513,13.88220683,2575.9,2575.5,0.1936]
[1751560220390,10.0,2575.9,2575.5,0.1936]
[1751560220595,3.8825529,2575.7,2575.5,0.1936]
[1751560221787,3.88229865,2575.8,2575.5,0.1936]
[1751560221983,12.6441726,2575.9,2575.5,0.1936]
[1751560221984,3.88244204,2575.7,2575.5,0.1936]
[1751560222826,3.88234811,2575.8,2575.5,0.1936]
[1751560223220,16.52635926,2575.9,2575.5,0.1936]
[1751560223422,3.88237633,2575.8,2575.5,0.1936]
[1751560223587,3.88245015,2575.7,2575.5,0.1936]
[1751560223983,16.52637851,2575.9,2575.5,4.07633666]
[1751560224300,10.0,2575.9,2575.5,4.07627156]
[1751560224479,13.88215352,2575.9,2575.5,4.07627156]
[1751560225313,3.88229907,2575.8,2575.5,0.1936]
[1751560225813,13.88222263,2575.9,2575.5,4.07629203]
[1751560227123,10.0,2575.7,2575.5,0.1936]
[1751560228623,10.0,2575.8,2575.5,4.07630976]
[1751560231113,13.88237063,2575.8,2575.5,0.1936]
[1751560231506,10.0,2575.8,2575.5,4.07626682]
[1751560232129,10.0,2575.8,2575.6,3.88252195]
[1751560232315,0.02,2575.9,2575.7,3.88237017]
[1751560232495,0.02,2575.9,2575.8,3.88228899]
[1751560232911,0.02,2575.9,2575.7,0.1936]
[1751560233245,10.02,2575.9,2575.7,0.1936]
[1751560233423,13.90215246,2575.9,2575.7,0.1936]
[1751560233808,3.88228899,2575.8,2575.7,0.1936]
[1751560234005,10.02,2575.9,2575.7,0.1936]
[1751560234419,13.90220786,2575.9,2575.7,0.1936]
[1751560235113,13.90222093,2575.9,2575.7,0.1936]
[1751560235447,3.88246168,2575.7,2575.4,0.8146]
[1751560235745,3.88246168,2575.7,2575.5,0.1936]
[1751560236136,3.88236802,2575.8,2575.5,0.1936]
[1751560236827,3.88248718,2575.7,2575.5,0.1936]
[1751560237544,12.56302634,2575.9,2575.5,0.1936]
[1751560237545,3.88259046,2575.6,2575.5,0.1936]
[1751560237711,3.88289197,2575.4,2575.3,0.2036]
[1751560238661,14.71129197,2575.4,2575.3,0.01]
[1751560238819,15.82453426,2575.4,2575.3,0.01]
[1751560239642,5.68071216,2575.9,2575.3,0.01]
[1751560239643,1.79842634,2575.9,2575.3,0.8047]
[1751560239852,1.79842634,2575.9,2575.8,4.67698899]
[1751560239853,0.02,2575.9,2575.8,4.67698899]
[1751560240009,0.02,2575.9,2575.8,6.22192337]
[1751560240208,0.02,2575.9,2575.8,2.33963438]
[1751560240408,0.02,2575.9,2575.8,6.22192337]
[1751560240651,0.02,2575.9,2575.8,6.18310049]
[1751560241615,0.02,2575.9,2575.8,4.87058899]
[1751560243332,0.02,2575.9,2575.8,0.9883]
[1751560243731,0.02,2575.9,2575.8,4.87058899]
[1751560244641,0.02,2575.9,2575.8,4.90941187]
[1751560244847,0.02,2575.9,2575.8,4.87058899]
[1751560245047,0.02,2575.9,2575.8,14.19401761]
[1751560245928,0.02,2575.9,2575.8,5.74589163]
[1751560246655,0.02,2575.9,2575.8,5.78471451]
[1751560249864,0.02,2575.9,2575.8,5.74589163]
[1751560250065,0.02,2575.9,2575.8,4.87058899]
[1751560250277,0.02,2575.9,2575.8,4.07588899]
[1751560252370,0.02,2575.9,2575.8,0.1936]
[1751560252662,0.02,2575.9,2575.6,0.1936]
[1751560252963,3.88228961,2575.8,2575.6,0.1936]
[1751560253172,0.85998548,2575.8,2575.6,0.1936]
[1751560253368,0.8115,2575.7,2575.6,0.1936]
[1751560253574,0.8115,2575.7,2575.5,0.01]
[1751560253737,13.88259046,2575.6,2575.5,0.01]
[1751560254165,14.68989046,2575.6,2575.5,0.01]
[1751560254338,27.8731866,2575.6,2575.5,0.01]
[1751560254550,31.06811198,2575.6,2575.5,0.01]
[1751560255066,31.97578598,2575.6,2575.5,0.01]
[1751560255369,31.06811198,2575.6,2575.5,0.01]
[1751560255740,31.9767738,2575.6,2575.5,0.01]
[1751560255942,31.06811198,2575.6,2575.5,0.01]
[1751560258275,61.06811198,2575.6,2575.5,0.01]
[1751560258484,62.52603773,2575.6,2575.5,0.01]
[1751560259183,61.61811198,2575.6,2575.5,0.01]
[1751560259363,62.52579486,2575.6,2575.5,0.01]
[1751560261382,66.52579486,2575.6,2575.5,0.01]
[1751560262985,74.32579486,2575.6,2575.5,0.01]
[1751560263188,73.41811198,2575.6,2575.5,0.01]
[1751560269412,63.41811198,2575.6,2575.5,0.01]
[1751560269579,73.41811198,2575.6,2575.5,0.01]
[1751560270720,29.68481584,2575.6,2575.5,0.01]
[1751560271911,34.14241496,2575.6,2575.5,0.01]
[1751560274520,21.68259046,2575.6,2575.5,0.01]
[1751560275624,0.02,2575.9,2575.5,0.01]
[1751560275826,0.02,2575.9,2575.6,0.7824]
[1751560276023,0.02,2575.9,2575.6,4.6649262]
[1751560276203,0.02,2575.9,2575.7,3.8824076]
[1751560276521,0.02,2575.9,2575.6,0.7824]
[1751560276719,0.02,2575.9,2575.6,4.66491306]
[1751560276908,0.02,2575.9,2575.7,3.88241456]
[1751560277933,0.02,2575.9,2575.7,3.88234295]
[1751560278228,0.02,2575.9,2575.6,1.63817575]
[1751560278423,0.02,2575.9,2575.8,3.88228899]
[1751560278728,0.02,2575.9,2575.7,3.8823168]
[1751560281510,0.02,2575.9,2575.6,4.66491786]
[1751560281911,10.02,2575.9,2575.6,0.7824]
[1751560282634,10.02,2575.9,2575.6,4.66497545]
[1751560282929,0.02,2575.9,2575.6,4.66497545]
[1751560283131,0.02,2575.9,2575.6,0.7824]
[1751560283834,0.02,2575.9,2575.6,4.66496036]
[1751560284830,0.02,2575.9,2575.8,3.88228899]
[1751560285624,0.02,2575.9,2575.8,4.07588899]
[1751560288152,0.02,2575.9,2575.8,0.1936]
[1751560293836,0.02,2575.9,2575.8,4.07588899]
[1751560294539,0.02,2575.9,2575.8,4.85788899]
[1751560294741,0.02,2575.9,2575.8,5.81749772]
[1751560296538,0.02,2575.9,2575.8,5.8563206]
[1751560302655,0.02,2575.9,2575.8,5.8663206]
[1751560305453,0.02,2575.9,2575.8,14.32391972]
[1751560305656,0.02,2575.9,2575.8,14.28509684]
[1751560305856,0.02,2575.9,2575.8,5.82749772]
[1751560309278,0.02,2575.9,2575.8,0.2036]
[1751560309464,13.1240374,2575.9,2575.8,0.01]
[1751560309965,14.03875897,2575.9,2575.8,0.01]
[1751560311736,5.58115985,2575.9,2575.8,0.01]
[1751560312165,7.84667944,2575.9,2575.8,0.01]
[1751560315844,4.66643828,2575.9,2575.8,0.01]
[1751560316047,0.7843,2575.9,2575.8,0.01]
[1751560316642,4.66643828,2575.9,2575.8,0.01]
[1751560324363,0.02,2575.9,2575.8,0.01]
[1751560324858,3.90213828,2575.9,2575.8,0.01]
[1751560327383,0.02,2575.9,2575.8,0.01]
[1751560327695,3.90213828,2575.9,2575.8,0.01]
[1751560327992,0.02,2575.9,2575.8,0.01]
[1751560330469,0.02,2575.9,2575.8,3.89228899]
[1751560330662,0.02,2575.9,2575.8,5.28530077]
[1751560332873,0.02,2575.9,2575.8,5.83530077]
[1751560333698,0.02,2575.9,2575.8,5.79647789]
[1751560333896,0.02,2575.9,2575.8,5.24647789]
[1751560334099,0.02,2575.9,2575.8,5.28530077]
[1751560336401,0.02,2575.9,2575.8,5.24647789]
[1751560337274,0.02,2575.9,2575.8,4.83788899]
[1751560341604,0.02,2575.9,2575.8,4.87671187]
[1751560346995,0.02,2575.9,2575.8,4.83788899]
[1751560349317,0.02,2575.9,2575.8,4.87671187]
[1751560349910,0.02,2575.9,2575.8,4.83788899]
[1751560350117,0.02,2575.9,2575.8,5.70990814]
[1751560351416,0.02,2575.9,2575.8,5.74873102]
[1751560351626,0.8322,2576.4,2575.8,5.74873102]
[1751560351627,0.8262,2576.8,2576.5,3.88123423]
[1751560351926,0.8462,2577.0,2576.6,3.88099279]
[1751560352099,5.22072468,2577.0,2576.6,4.07459279]
[1751560352497,1.34020297,2577.0,2576.6,4.07461379]
[1751560352915,5.2206891,2577.0,2576.6,4.07461379]
[1751560353127,1.34020297,2577.0,2576.7,3.88086322]
[1751560353316,0.8462,2577.0,2576.7,3.88086322]
[1751560353824,0.8462,2577.0,2576.8,3.88072666]
[1751560354013,0.8462,2577.0,2576.8,4.07432666]
[1751560354536,0.8462,2577.0,2576.8,4.07429136]
[1751560355204,0.8462,2577.0,2576.9,3.88063176]
[1751560355544,0.8462,2577.0,2576.9,4.07423176]
[1751560357127,0.02,2577.0,2576.9,4.86974743]
[1751560360463,0.02,2577.0,2576.9,4.07423176]
[1751560361028,0.7989,2577.0,2576.9,0.1936]
[1751560362173,0.02,2577.0,2576.9,0.1936]
[1751560362344,0.02,2577.0,2576.9,4.07423176]
[1751560363478,0.02,2577.0,2576.9,4.86973279]
[1751560364045,0.02,2577.0,2576.9,4.07423176]
[1751560365034,0.02,2577.0,2576.9,4.11303807]
[1751560366557,0.02,2577.0,2576.9,5.48663807]
[1751560367242,1e-08,2577.0,2576.9,5.48663807]
[1751560369555,1e-08,2577.0,2576.9,5.44783176]
[1751560369756,1e-08,2577.0,2576.9,7.69860714]
[1751560371964,1e-08,2577.0,2576.9,16.13645967]
[1751560372566,1e-08,2577.0,2576.9,18.06545967]
[1751560375768,1e-08,2577.0,2576.9,9.62760714]
[1751560376063,1e-08,2577.0,2576.9,18.06545967]
[1751560377459,1e-08,2577.0,2576.9,9.62760714]
[1751560378276,1e-08,2577.0,2576.9,9.07760714]
[1751560378440,1e-08,2577.0,2576.9,9.62760714]
[1751560379275,0.02,2577.6,2577.5,4.70662841]
[1751560379472,0.02,2577.6,2577.5,4.74542569]
[1751560379641,0.02,2577.6,2577.5,4.93902569]
[1751560379848,0.02,2577.6,2577.5,4.07332841]
[1751560380167,0.02,2577.6,2577.5,4.11212569]
[1751560380675,0.02,2577.6,2577.5,4.91132337]
[1751560381976,0.02,2577.6,2577.5,4.11212569]
[1751560382275,0.02,2577.6,2577.5,12.00712569]
[1751560382470,0.02,2577.6,2577.5,11.96832841]
[1751560382844,0.772,2577.6,2577.5,11.97232841]
[1751560384074,0.02,2577.6,2577.5,12.75782841]
[1751560384276,0.02,2577.6,2577.5,14.61449732]
[1751560385556,0.02,2577.6,2577.5,13.82799732]
[1751560385762,0.02,2577.6,2577.5,11.97032841]
[1751560387683,0.02,2577.6,2577.5,11.96932841]
[1751560391606,0.02,2577.6,2577.5,4.07332841]
[1751560391790,0.8377,2577.6,2577.5,11.96732841]
[1751560392263,0.02,2577.6,2577.5,11.96732841]
[1751560394702,0.02,2577.6,2577.5,11.96832841]
[1751560396391,0.02,2577.6,2577.5,8.0886]
[1751560396592,0.02,2577.6,2577.5,11.96832841]
[1751560399076,0.02,2577.6,2577.5,8.0886]
[1751560401123,0.7846,2577.6,2577.5,8.0836]
[1751560401493,4.6641779,2577.6,2577.5,8.0836]
[1751560401805,5.5185526,2577.6,2577.5,8.0836]
[1751560401994,5.5185526,2577.6,2577.5,7.889]
[1751560402679,3.8798518,2577.5,2577.3,0.1936]
[1751560402884,5.51862717,2577.6,2577.4,7.889]
[1751560403829,3.87972841,2577.5,2577.4,7.889]
[1751560404030,0.8155,2577.4,2577.3,7.89]
[1751560405228,4.71516085,2577.6,2577.3,7.89]
[1751560405591,8.43785253,2577.5,2577.2,0.1936]
[1751560405924,0.8155,2577.3,2577.2,0.1936]
[1751560408701,4.69552948,2577.3,2577.2,0.1936]
[1751560409115,0.8155,2577.3,2577.2,0.1936]
[1751560409509,0.02,2577.6,2577.2,0.8484018]
[1751560409713,0.02,2577.6,2577.4,3.87986176]
[1751560410422,0.02,2577.6,2577.3,7.888]
[1751560410798,0.02,2577.6,2577.4,3.87980315]
[1751560411198,0.02,2577.6,2577.3,11.76793953]
[1751560411416,0.02,2577.6,2577.3,7.888]
[1751560411638,0.02,2577.6,2577.3,11.76801629]
[1751560412109,0.8155,2577.5,2577.3,7.888]
[1751560413430,4.6952575,2577.5,2577.0,0.02]
[1751560413648,0.7855,2577.4,2577.0,0.02]
[1751560413950,0.7855,2577.4,2577.1,3.88026839]
[1751560416225,0.7855,2577.4,2577.1,11.76826839]
[1751560416630,0.7855,2577.4,2577.1,7.888]
[1751560417723,0.7855,2577.4,2577.1,11.76832768]
[1751560419046,0.7855,2577.4,2577.1,7.888]
[1751560419220,0.7855,2577.4,2577.1,11.7683166]
[1751560419650,0.7855,2577.4,2577.1,11.9619166]
[1751560420137,0.7855,2577.4,2577.2,3.88016983]
[1751560420553,0.7855,2577.4,2577.1,11.9618633]
[1751560420846,0.7855,2577.4,2577.2,3.88010032]
[1751560421352,0.02,2577.6,2577.2,1.58620049]
[1751560421646,0.02,2577.6,2577.4,3.87975577]
[1751560421853,0.02,2577.6,2577.4,11.76775577]
[1751560422235,0.02,2577.6,2577.4,7.888]
[1751560425859,0.02,2577.6,2577.4,11.76786906]
[1751560426232,0.02,2577.6,2577.4,7.888]
[1751560426646,0.02,2577.6,2577.4,11.76786911]
[1751560428236,0.02,2577.6,2577.4,7.888]
[1751560428442,0.02,2577.6,2577.4,11.7678001]
[1751560429353,0.02,2577.6,2577.5,3.87972841]
[1751560429544,0.02,2577.6,2577.5,6.44474718]
[1751560429748,0.02,2577.6,2577.5,6.48354446]
[1751560431565,0.02,2577.6,2577.5,7.03354446]
[1751560440368,1e-08,2577.6,2577.5,6.99474718]
[1751560440590,1e-08,2577.6,2577.5,7.03354446]
[1751560445785,1e-08,2577.6,2577.5,17.03354446]
[1751560445969,1e-08,2577.6,2577.5,16.99474718]
[1751560446579,1e-08,2578.0,2577.9,4.42912642]
[1751560446887,1e-08,2578.0,2577.9,24.5354073]
[1751560447087,1e-08,2578.0,2577.9,24.49661604]
[1751560449177,1e-08,2578.0,2577.9,16.05876351]
[1751560451982,1e-08,2578.0,2577.9,16.35264074]
[1751560456871,1e-08,2578.0,2577.9,24.79049327]
[1751560457072,0.02,2578.3,2578.1,5.24292549]
[1751560457073,1e-08,2578.3,2578.1,5.24292549]
[1751560457374,1e-08,2578.3,2578.2,25.60336518]
[1751560457580,1e-08,2578.3,2578.2,26.15336518]
[1751560458179,1e-08,2578.3,2578.2,25.32546518]
[1751560458487,1e-08,2578.3,2578.2,14.77546518]
[1751560459290,1e-08,2578.3,2578.2,4.07227504]
[1751560459483,1e-08,2578.3,2578.2,11.94327504]
[1751560459878,0.77630001,2578.3,2578.2,11.94327504]
[1751560460389,0.77630001,2578.3,2578.2,8.0636]
[1751560460591,0.77630001,2578.3,2578.2,8.0646]
[1751560461300,0.7763,2578.2,2577.8,1.922]
[1751560461473,0.7763,2578.2,2578.0,0.1936]
[1751560461672,0.7763,2578.2,2577.8,5.8012706]
[1751560461673,0.7763,2578.2,2578.1,7.874]
[1751560461872,1e-08,2578.3,2578.2,3.87867504]
[1751560462062,1e-08,2578.3,2578.2,3.91746179]
[1751560462663,1e-08,2578.3,2578.2,3.87867504]
[1751560463072,1e-08,2578.3,2578.2,5.49997184]
[1751560464687,1e-08,2578.3,2578.2,6.04997184]
[1751560467196,1e-08,2578.3,2578.2,15.26418509]
[1751560467498,0.83050001,2578.3,2578.2,11.75867504]
[1751560468702,0.83050001,2578.3,2578.1,0.1936]
[1751560469001,0.83050001,2578.3,2578.2,7.91878675]
[1751560469181,0.83050001,2578.3,2578.2,7.88]
[1751560469999,0.83050001,2578.3,2578.1,0.1936]
[1751560470200,0.83050001,2578.3,2578.2,7.879]
[1751560470698,0.83050001,2578.3,2578.2,7.88]
[1751560472814,0.83050001,2578.3,2578.1,8.0736]
[1751560473022,0.83050001,2578.3,2578.1,0.1936]
[1751560473187,0.94619526,2578.3,2578.2,7.879]
[1751560473382,1e-08,2578.3,2578.2,7.879]
[1751560473777,0.75080001,2578.3,2578.1,8.0726]
[1751560474709,0.75080001,2578.3,2578.1,8.0926]
[1751560477304,0.75080001,2578.3,2578.1,8.0896]
[1751560479195,0.75080001,2578.3,2578.1,0.2136]
[1751560479418,0.75080001,2578.3,2578.1,8.0876]
[1751560481313,1e-08,2578.3,2578.2,0.03878675]
[1751560481886,1e-08,2578.3,2578.1,13.9208831]
[1751560482308,1e-08,2578.3,2578.2,0.03878675]
[1751560482518,1e-08,2578.3,2578.1,13.9208831]
[1751560482715,1e-08,2578.3,2578.2,1.81876274]
[1751560483520,1e-08,2578.3,2578.2,1.77997599]
[1751560483724,1e-08,2578.3,2578.2,1.81876274]
[1751560483889,1e-08,2578.3,2578.2,1.77997599]
[1751560486415,1e-08,2578.3,2578.2,1.81876274]
[1751560492607,1e-08,2578.3,2578.2,11.81876274]
[1751560492807,1e-08,2578.3,2578.2,11.77997599]
[1751560493029,1e-08,2578.3,2578.2,12.32997599]
[1751560496745,1e-08,2578.3,2578.2,13.16037599]
[1751560497045,0.02,2578.7,2578.6,9.81825253]